fUST/lending_fUST_20240904
["ID","MTS","AMOUNT","RATE_DAILY","PERIOD"]
[337144039,1725455507934,-176.47749281,0.000327,13]
[337144040,1725455507967,-200.0,0.000329,13]
[337144041,1725455508186,-50000.0,0.00033,15]
[337144042,1725455508214,-555.0,0.00033,10]
[337144043,1725455508243,-20000.0,0.00033,10]
[337144044,1725455508273,-96111.05,0.000331,14]
[337144045,1725455508300,-1326.94,0.000331,14]
[337144046,1725455508326,-301416.49,0.000331,14]
[337144047,1725455508373,-349.4,0.000337,17]
[337144048,1725455508399,-200.0,0.000337,17]
[337144049,1725455508424,-65989.98,0.000338,14]
[337144050,1725455508451,-200.0,0.000339,17]
[337144051,1725455508478,-50000.0,0.00034,15]
[337144052,1725455508506,-151.0,0.00034428,15]
[337144053,1725455508532,-10000.0,0.000345,25]
[337144054,1725455508557,-301416.49,0.000346,14]
[337144055,1725455508582,-200.0,0.000347,20]
[337144056,1725455508607,-200.0,0.000347,20]
[337144057,1725455508634,-200.0,0.000349,21]
[337144058,1725455508661,-1307.17250719,0.000349,14]
[337144060,1725455512206,-352.53,0.000273,14]
[337144061,1725455512687,-352.53,0.000296,14]
[337144062,1725455512788,-1000.0,0.00031,15]
[337144063,1725455513014,-352.53,0.000318,14]
[337144064,1725455513095,-352.53,0.00034,14]
[337144065,1725455513125,-94803.87749281,0.000349,14]
[337144066,1725455513151,-50000.0,0.00035,15]
[337144067,1725455513176,-202.0,0.00035,13]
[337144068,1725455513203,-151.0,0.00035069,15]
[337144069,1725455513239,-200.0,0.000357,24]
[337144070,1725455513273,-200.0,0.000357,24]
[337144071,1725455513300,-151.0,0.0003571,15]
[337144072,1725455513326,-200.0,0.000359,25]
[337144073,1725455513353,-49998.0,0.00036,15]
[337144074,1725455513379,-65989.98,0.000365,14]
[337144075,1725455513408,-352.53,0.000366,14]
[337144076,1725455513436,-1326.94,0.000368,14]
[337144077,1725455513463,-96111.05,0.000369,14]
[337144078,1725455513490,-153.0,0.0003726,120]
[337144079,1725455513518,-153.0,0.0003726,120]
[337144080,1725455513543,-153.0,0.0003726,120]
[337144081,1725455513570,-153.0,0.0003726,120]
[337144082,1725455513594,-153.0,0.0003726,120]
[337144083,1725455513622,-153.0,0.0003726,120]
[337144084,1725455513649,-153.0,0.0003726,120]
[337144085,1725455513675,-153.0,0.0003726,120]
[337144086,1725455513700,-153.0,0.0003726,120]
[337144087,1725455513726,-153.0,0.0003726,120]
[337144088,1725455513757,-153.0,0.0003726,120]
[337144089,1725455513783,-153.0,0.0003726,120]
[337144090,1725455513811,-153.0,0.0003726,120]
[337144091,1725455513836,-153.0,0.0003726,120]
[337144092,1725455513862,-153.0,0.0003726,120]
[337144093,1725455513891,-153.0,0.0003726,120]
[337144094,1725455513918,-153.0,0.0003726,120]
[337144095,1725455513944,-153.0,0.0003726,120]
[337144096,1725455513970,-301416.49,0.00038,14]
[337144097,1725455513997,-96111.05,0.000394,14]
[337144098,1725455514023,-1152.0,0.00039835,30]
[337144099,1725455514048,-152.0,0.00041041,31]
[337144100,1725455514075,-1613.0,0.00043819,30]
[337144101,1725455514101,-139.48967188,0.00043835,120]
[337144102,1725455514125,-1000.0,0.00043835,120]
[337144103,1725455514150,-501.18162578,0.00043835,120]
[337144104,1725455514182,-1200.0,0.00043894,30]
[337144105,1725455514207,-1800.0,0.00043982,30]
[337144106,1725455514238,-1200.0,0.00043992,30]
[337144107,1725455514268,-300.0,0.00044,120]
[337144108,1725455514294,-200.0,0.000441,57]
[337144109,1725455514324,-1800.0,0.00044179,30]
[337144110,1725455514351,-151.0,0.00044301,120]
[337144111,1725455514378,-800.0,0.00044365,30]
[337144112,1725455514404,-1000.0,0.00044484,30]
[337144113,1725455514431,-500.0,0.00044777,30]
[337144114,1725455514457,-800.0,0.00044839,30]
[337144115,1725455514481,-500.0,0.0004489,30]
[337144116,1725455514507,-1000.0,0.00045,120]
[337144117,1725455514535,-873.62308939,0.00045,120]
[337144118,1725455514560,-266.71159611,0.00045,30]
[337144120,1725455514585,-16018.41761166,0.00045,120]
[337144121,1725455514609,-834.83924172,0.00045,20]
[337144122,1725455514636,-280.43845618,0.0004508,120]
[337144123,1725455514662,-200.0,0.000451,61]
[337144124,1725455514687,-500.0,0.00045179,30]
[337144125,1725455514713,-409.9728619,0.00045206,120]
[337144126,1725455514740,-1200.0,0.00045325,30]
[337144127,1725455514769,-1000.0,0.000455,120]
[337144128,1725455514796,-1800.0,0.00045501,30]
[337144129,1725455514823,-800.0,0.00045661,30]
[337144130,1725455514852,-151.0,0.0004589,120]
[337144131,1725455514880,-50148.87495844,0.00046,30]
[337144132,1725455514908,-2000.0,0.00046,120]
[337144133,1725455514935,-163.27777229,0.00046,120]
[337144134,1725455514963,-10000.0,0.00046,30]
[337144135,1725455514989,-29732.71818326,0.00046,120]
[337144136,1725455515019,-1200.0,0.00046085,30]
[337144137,1725455515043,-200.0,0.000461,65]
[337144138,1725455515071,-800.0,0.00046264,30]
[337144139,1725455515096,-800.0,0.00046281,30]
[337144140,1725455515122,-151.0,0.00046438,120]
[337144141,1725455515149,-1800.0,0.0004667,30]
[337144142,1725455515176,-482.41743858,0.0004674,30]
[337144153,1725455527927,-153.0,0.0003726,120]
[337144154,1725455527954,-153.0,0.0003726,120]
[337144155,1725455527981,-153.0,0.0003726,120]
[337144156,1725455528008,-153.0,0.0003726,120]
[337144157,1725455528038,-153.0,0.0003726,120]
[337144158,1725455528066,-153.0,0.0003726,120]
[337144159,1725455528093,-153.0,0.0003726,120]
[337144160,1725455528119,-153.0,0.0003726,120]
[337144161,1725455528145,-153.0,0.0003726,120]
[337144162,1725455528173,-153.0,0.0003726,120]
[337144163,1725455528202,-153.0,0.0003726,120]
[337144164,1725455528233,-153.0,0.0003726,120]
[337144165,1725455528259,-153.0,0.0003726,120]
[337144166,1725455528290,-153.0,0.0003726,120]
[337144168,1725455528323,-153.0,0.0003726,120]
[337144169,1725455528348,-153.0,0.0003726,120]
[337144170,1725455528377,-153.0,0.0003726,120]
[337144171,1725455528403,-153.0,0.0003726,120]
[337144172,1725455528430,-153.0,0.0003726,120]
[337144173,1725455528456,-153.0,0.0003726,120]
[337144174,1725455528482,-352.53,0.000396,14]
[337144175,1725455528663,-1433.0,0.00042068,30]
[337144176,1725455528689,-1000.0,0.00045,120]
[337144177,1725455528713,-17.58256142,0.0004674,30]
[337144178,1725455528739,-3200.0,0.0004674,30]
[337144179,1725455528764,-300.0,0.0004674,30]
[337144180,1725455528790,-150.0,0.0004674,30]
[337144181,1725455528815,-912.94057887,0.000468,120]
[337144182,1725455528843,-1454.48114468,0.000468,120]
[337144183,1725455528870,-992.39331245,0.000468,120]
[337144184,1725455528894,-1748.2641121,0.000468,120]
[337144185,1725455528920,-895.30183769,0.000468,60]
[337144186,1725455528945,-1005.06014765,0.000468,120]
[337144187,1725455528970,-1870.10782747,0.000468,120]
[337144188,1725455528994,-1200.0,0.00046936,30]
[337144189,1725455529019,-14274.95712659,0.00046936,90]
[337144190,1725455529046,-17042.6405978,0.00047,30]
[337144191,1725455529072,-515.0,0.00047,30]
[337144192,1725455529097,-300.0,0.00047,120]
[337144193,1725455529122,-409.8804906,0.00047325,120]
[337144194,1725455529147,-409.8804906,0.00047325,120]
[337144195,1725455529173,-151.0,0.00047479,120]
[337144196,1725455529198,-376.266847,0.00047489,120]
[337144198,1725455529224,-190.73416061,0.000475,120]
[337144199,1725455529253,-1000.0,0.00047542,30]
[337144200,1725455529280,-500.0,0.00047603,30]
[337144201,1725455529308,-1000.0,0.00047783,30]
[337144202,1725455529335,-1200.0,0.00047795,30]
[337144203,1725455529361,-1200.0,0.00047852,30]
[337144204,1725455529387,-2603.0,0.00047888,120]
[337144205,1725455529412,-999.999999,0.00048,120]
[337144206,1725455529437,-1326.94,0.00048,30]
[337144207,1725455529461,-352.53,0.00048,30]
[337144208,1725455529486,-1200.0,0.00048071,30]
[337144209,1725455529510,-724.570149,0.00048306,120]
[337144210,1725455529538,-1000.0,0.00048458,30]
[337144211,1725455529563,-1800.0,0.00048715,30]
[337144212,1725455529586,-299.0,0.00049,30]
[337144213,1725455529613,-5000.0,0.00049,120]
[337144214,1725455529640,-206.0839135,0.00049,10]
[337144215,1725455529665,-8113.51721815,0.00049,30]
[337144216,1725455529691,-1276.16,0.00049,30]
[337144217,1725455529716,-503.79102748,0.00049068,11]
[337144218,1725455529745,-151.0,0.00049068,120]
[337144219,1725455529771,-1000.0,0.00049075,30]
[337144220,1725455529806,-151.0,0.00049178,120]
[337144221,1725455529832,-800.0,0.00049252,30]
[337144222,1725455529862,-152.0,0.00049278,60]
[337144224,1725455529890,-1200.0,0.00049303,30]
[337144225,1725455529914,-500.0,0.00049315,120]
[337144226,1725455529940,-500.0,0.00049315,120]
[337144227,1725455529965,-500.0,0.00049315,120]
[337144228,1725455529990,-500.0,0.00049315,120]
[337144229,1725455530014,-500.0,0.00049315,120]
[337144230,1725455530047,-500.0,0.00049315,120]
[337144231,1725455530071,-500.0,0.00049315,120]
[337144232,1725455530097,-500.0,0.00049315,120]
[337144233,1725455530121,-500.0,0.00049315,120]
[337144234,1725455530146,-500.0,0.00049315,120]
[337144235,1725455530169,-500.0,0.00049315,120]
[337144236,1725455530194,-500.0,0.00049315,120]
[337144237,1725455530220,-500.0,0.00049315,120]
[337144238,1725455530248,-500.0,0.00049315,120]
[337144239,1725455530274,-500.0,0.00049315,120]
[337144240,1725455530298,-500.0,0.00049315,120]
[337144241,1725455530325,-500.0,0.00049315,120]
[337144242,1725455530349,-500.0,0.00049315,120]
[337144243,1725455530372,-500.0,0.00049315,120]
[337144244,1725455530396,-493.1557134,0.00049315,120]
[337144245,1725455530420,-500.0,0.00049315,31]
[337144246,1725455530444,-500.0,0.00049315,31]
[337144247,1725455530468,-500.0,0.00049315,31]
[337144248,1725455530493,-306.73264486,0.00049315,31]
[337144250,1725455530516,-500.0,0.00049315,31]
[337144251,1725455530542,-500.0,0.00049315,31]
[337144252,1725455530566,-260.59380375,0.00049315,31]
[337144253,1725455530595,153.0,0.0003726,120]
[337144254,1725455530624,153.0,0.0003726,120]
[337144255,1725455530659,153.0,0.0003726,120]
[337144256,1725455530688,153.0,0.0003726,120]
[337144257,1725455530719,153.0,0.0003726,120]
[337144258,1725455530750,153.0,0.0003726,120]
[337144259,1725455530784,153.0,0.0003726,120]
[337144260,1725455530812,153.0,0.0003726,120]
[337144261,1725455530844,153.0,0.0003726,120]
[337144262,1725455531040,153.0,0.0003726,120]
[337144263,1725455531072,153.0,0.0003726,120]
[337144264,1725455531105,153.0,0.0003726,120]
[337144265,1725455531138,153.0,0.0003726,120]
[337144266,1725455531172,153.0,0.0003726,120]
[337144267,1725455531200,153.0,0.0003726,120]
[337144268,1725455531237,153.0,0.0003726,120]
[337144269,1725455531267,153.0,0.0003726,120]
[337144271,1725455531449,153.0,0.0003726,120]
[337144272,1725455531665,153.0,0.0003726,120]
[337144273,1725455531871,153.0,0.0003726,120]
[337144274,1725455532083,153.0,0.0003726,120]
[337144276,1725455532305,153.0,0.0003726,120]
[337144277,1725455532520,153.0,0.0003726,120]
[337144278,1725455532746,153.0,0.0003726,120]
[337144279,1725455532985,153.0,0.0003726,120]
[337144280,1725455533231,153.0,0.0003726,120]
[337144282,1725455534036,153.0,0.0003726,120]
[337144283,1725455534272,153.0,0.0003726,120]
[337144285,1725455534549,153.0,0.0003726,120]
[337144286,1725455534782,153.0,0.0003726,120]
[337144287,1725455535011,153.0,0.0003726,120]
[337144288,1725455535235,153.0,0.0003726,120]
[337144290,1725455535636,153.0,0.0003726,120]
[337144291,1725455536216,153.0,0.0003726,120]
[337144293,1725455536463,153.0,0.0003726,120]
[337144294,1725455536676,153.0,0.0003726,120]
[337144295,1725455536899,153.0,0.0003726,120]
[337144297,1725455537549,153.0,0.0003726,120]
[337144300,1725455539178,153.0,0.0003726,120]
[337144302,1725455539418,153.0,0.0003726,120]
[337144303,1725455539567,499.3,0.00046837,30]
[337144304,1725455539639,153.0,0.0003726,120]
[337144305,1725455539864,153.0,0.0003726,120]
[337144307,1725455540134,153.0,0.0003726,120]
[337144308,1725455540422,153.0,0.0003726,120]
[337144309,1725455540640,153.0,0.0003726,120]
[337144312,1725455541487,153.0,0.0003726,120]
[337144313,1725455541701,153.0,0.0003726,120]
[337144314,1725455541916,153.0,0.0003726,120]
[337144457,1725455703181,200.0,0.00023,120]
[337144464,1725455939642,1000.0,0.000171,2]
[337144496,1725456384721,9383.8133704,0.00024702,63]
[337144519,1725456525602,40128.9211996,0.0002,2]
[337144521,1725456526439,75953.49313834,0.0001999,2]
[337144524,1725456527590,793.30774849,0.000129,2]
[337144594,1725456638725,-615.884627,0.00024658,2]
[337144595,1725456638734,-300.0,0.00024999,2]
[337144596,1725456638743,-300.0,0.00024999,2]
[337144597,1725456638752,-307.09312813,0.00025,10]
[337144598,1725456638761,-17562.8768017,0.00025,2]
[337144605,1725456643783,-19499.65194415,0.00025,2]
[337144606,1725456643793,-10364.0,0.00025,2]
[337144607,1725456643803,-14175.99,0.0002508,3]
[337144608,1725456643812,-1541.3871335,0.0002509,2]
[337144615,1725456647722,-121754.36821293,0.0002509,2]
[337144616,1725456647732,-176.495913,0.00025265,2]
[337144617,1725456647741,-24900.0,0.00025327,2]
[337144618,1725456647751,-600.0,0.0002619,12]
[337144619,1725456647760,-4015.433403,0.000264,2]
[337144620,1725456647769,-6849.41611134,0.00026556,2]
[337144621,1725456647778,-600.0,0.00026656,14]
[337144622,1725456647788,-1107.21766406,0.00026841,14]
[337144623,1725456647797,-254.13284002,0.00026929,2]
[337144624,1725456647807,-1000.0,0.00027,2]
[337144625,1725456647816,-985.19628249,0.00027068,2]
[337144626,1725456647825,-1000.0,0.00027079,2]
[337144627,1725456647834,-408.0,0.00027082,2]
[337144628,1725456647843,-280.48606629,0.00027089,2]
[337144629,1725456647853,-3000.0,0.000271,120]
[337144630,1725456647862,-8163.84479375,0.00027139,2]
[337144631,1725456647872,-280.48606625,0.00027141,2]
[337144632,1725456647882,-246.30268515,0.00027159,2]
[337144633,1725456647894,-210.45406786,0.00027159,2]
[337144634,1725456647903,-500.0,0.00027159,2]
[337144635,1725456647912,-500.0,0.00027159,2]
[337144636,1725456647922,-500.0,0.00027159,2]
[337144637,1725456647931,-500.0,0.00027159,2]
[337144638,1725456647940,-469.54309363,0.00027159,2]
[337144639,1725456647949,-37248.68835243,0.00027159,15]
[337144640,1725456647959,-653507.328065,0.0002716,2]
[337144641,1725456647969,-416789.271858,0.00027169,3]
[337144642,1725456647978,-500.0,0.00027173,2]
[337144643,1725456647987,-500.0,0.00027173,2]
[337144644,1725456647997,-280.48606625,0.00027193,2]
[337144645,1725456648006,-280.48606625,0.00027245,2]
[337144646,1725456648016,-245.80960957,0.00027259,2]
[337144647,1725456648026,-1896.21806302,0.00027259,2]
[337144648,1725456648035,-500.0,0.00027273,2]
[337144649,1725456648045,-2936.22026758,0.00027297,2]
[337144650,1725456648054,-2395.87065616,0.00027297,2]
[337144651,1725456648063,-49176.60497338,0.00027297,3]
[337144652,1725456648073,-280.48606625,0.00027297,2]
[337144653,1725456648082,-10000.0,0.000273,120]
[337144654,1725456648091,-1417.96,0.000273,7]
[337144655,1725456648101,-1326.94,0.000273,14]
[337144656,1725456648110,-440.66,0.000273,14]
[337144657,1725456648120,-500.36432075,0.00027373,2]
[337144658,1725456648129,-160.18904169,0.00027373,2]
[337144659,1725456648142,-202.98794253,0.00027373,2]
[337144660,1725456648151,-501.36411391,0.00027373,2]
[337144661,1725456648160,-255.0334715,0.00027373,2]
[337144662,1725456648170,-618.62345339,0.00027373,2]
[337144663,1725456648179,-500.0,0.00027373,2]
[337144664,1725456648189,-500.0,0.00027373,2]
[337144665,1725456648198,-358.66088788,0.00027397,2]
[337144666,1725456648208,-505.7439484,0.00027397,2]
[337144667,1725456648218,-500.0,0.00027397,2]
[337144668,1725456648227,-505.96564613,0.00027397,2]
[337144669,1725456648237,-503.40708593,0.00027397,2]
[337144670,1725456648247,-500.0,0.00027397,2]
[337144671,1725456648256,-501.4328851,0.00027397,2]
[337144672,1725456648266,-500.0,0.00027397,2]
[337144673,1725456648275,-504.04601267,0.00027397,2]
[337144674,1725456648285,-500.0,0.00027397,2]
[337144675,1725456648295,-500.0,0.00027397,2]
[337144676,1725456648304,-500.0,0.00027397,2]
[337144677,1725456648313,-500.0,0.00027397,2]
[337144678,1725456648323,-500.0,0.00027397,2]
[337144679,1725456648333,-500.0,0.00027397,2]
[337144680,1725456648342,-500.0,0.00027397,2]
[337144681,1725456648352,-513.78038234,0.00027397,2]
[337144682,1725456648361,-500.0,0.00027397,2]
[337144683,1725456648371,-500.0,0.00027397,2]
[337144684,1725456648380,-500.0,0.00027397,2]
[337144685,1725456648393,-500.0,0.00027397,2]
[337144686,1725456648402,-500.0,0.00027397,2]
[337144687,1725456648412,-500.0,0.00027397,2]
[337144688,1725456648421,-500.0,0.00027397,2]
[337144689,1725456648430,-500.0,0.00027397,2]
[337144690,1725456648440,-502.58819497,0.00027397,2]
[337144691,1725456648449,-1302.02,0.00027397,2]
[337144692,1725456648459,-500.0,0.00027397,2]
[337144693,1725456648468,-500.0,0.00027397,2]
[337144694,1725456648478,-500.0,0.00027397,2]
[337144695,1725456648488,-500.0,0.00027397,2]
[337144696,1725456648498,-500.0,0.00027397,2]
[337144697,1725456648507,-500.0,0.00027397,2]
[337144698,1725456648516,-500.0,0.00027397,2]
[337144699,1725456648525,-500.0,0.00027397,2]
[337144700,1725456648535,-500.0,0.00027397,2]
[337144701,1725456648544,-500.0,0.00027397,2]
[337144702,1725456648554,-500.0,0.00027397,2]
[337144703,1725456648564,-557.94458638,0.00027397,2]
[337144704,1725456648574,-500.0,0.00027397,2]
[337144705,1725456648584,-500.0,0.00027397,2]
[337144706,1725456648595,-500.0,0.00027397,2]
[337144707,1725456648607,-500.0,0.00027397,2]
[337144708,1725456648617,-500.0,0.00027397,2]
[337144709,1725456648626,-500.0,0.00027397,2]
[337144710,1725456648638,-500.0,0.00027397,2]
[337144711,1725456648648,-500.0,0.00027397,2]
[337144712,1725456648658,-500.0,0.00027397,2]
[337144713,1725456648671,-500.0,0.00027397,2]
[337144714,1725456648680,-500.0,0.00027397,2]
[337144715,1725456648689,-500.0,0.00027397,2]
[337144716,1725456648699,-545.01251204,0.00027397,2]
[337144717,1725456648708,-500.0,0.00027397,2]
[337144718,1725456648862,-500.0,0.00027397,2]
[337144719,1725456648872,-500.0,0.00027397,2]
[337144720,1725456648881,-500.0,0.00027397,2]
[337144721,1725456648894,-500.0,0.00027397,2]
[337144722,1725456648903,-500.0,0.00027397,2]
[337144723,1725456648912,-379.01281713,0.00027397,2]
[337144724,1725456648921,-500.0,0.00027397,2]
[337144725,1725456648930,-500.0,0.00027397,2]
[337144726,1725456648939,-500.0,0.00027397,2]
[337144727,1725456648949,-500.0,0.00027397,2]
[337144728,1725456648958,-500.0,0.00027397,2]
[337144729,1725456648968,-500.0,0.00027397,2]
[337144730,1725456648979,-500.0,0.00027397,2]
[337144731,1725456648989,-500.0,0.00027397,2]
[337144732,1725456648999,-500.0,0.00027397,2]
[337144733,1725456649009,-500.0,0.00027397,2]
[337144734,1725456649018,-500.0,0.00027397,2]
[337144735,1725456649027,-500.0,0.00027397,2]
[337144736,1725456649037,-500.0,0.00027397,2]
[337144737,1725456649046,-500.0,0.00027397,2]
[337144738,1725456649056,-500.0,0.00027397,2]
[337144739,1725456649065,-500.0,0.00027397,2]
[337144740,1725456649075,-500.0,0.00027397,2]
[337144741,1725456649085,-500.0,0.00027397,2]
[337144742,1725456649094,-502.68432073,0.00027397,2]
[337144743,1725456649104,-500.0,0.00027397,2]
[337144744,1725456649113,-500.0,0.00027397,2]
[337144745,1725456649123,-500.0,0.00027397,2]
[337144746,1725456649134,-505.02019746,0.00027397,2]
[337144747,1725456649143,-500.0,0.00027397,2]
[337144748,1725456649153,-500.0,0.00027397,2]
[337144749,1725456649162,-500.0,0.00027397,2]
[337144750,1725456649172,-500.0,0.00027397,2]
[337144751,1725456649181,-500.0,0.00027397,2]
[337144752,1725456649192,-500.0,0.00027397,2]
[337144753,1725456649201,-500.0,0.00027397,2]
[337144754,1725456649210,-500.0,0.00027397,2]
[337144755,1725456649219,-466.40361962,0.00027397,2]
[337144756,1725456649228,-500.0,0.00027397,2]
[337144757,1725456649238,-500.0,0.00027397,2]
[337144758,1725456649250,-291.42441964,0.00027397,2]
[337144759,1725456649259,-500.0,0.00027397,2]
[337144760,1725456649269,-500.0,0.00027397,2]
[337144761,1725456649278,-500.0,0.00027397,2]
[337144762,1725456649288,-500.0,0.00027397,2]
[337144763,1725456649299,-500.0,0.00027397,2]
[337144764,1725456649308,-500.0,0.00027397,2]
[337144765,1725456649318,-500.0,0.00027397,2]
[337144766,1725456649328,-500.0,0.00027397,2]
[337144767,1725456649337,-500.0,0.00027397,2]
[337144768,1725456649347,-500.0,0.00027397,2]
[337144769,1725456649356,-500.0,0.00027397,2]
[337144770,1725456649366,-500.0,0.00027397,2]
[337144771,1725456649376,-502.23908319,0.00027397,2]
[337144772,1725456649388,-529.98049037,0.00027397,2]
[337144773,1725456649397,-500.0,0.00027397,2]
[337144774,1725456649407,-500.0,0.00027397,2]
[337144775,1725456649416,-500.0,0.00027397,2]
[337144776,1725456649425,-500.0,0.00027397,2]
[337144777,1725456649434,-500.50467565,0.00027397,2]
[337144778,1725456649443,-500.0,0.00027397,2]
[337144779,1725456649453,-500.0,0.00027397,2]
[337144780,1725456649463,-500.0,0.00027397,2]
[337144781,1725456649472,-500.0,0.00027397,2]
[337144782,1725456649482,-545.90712435,0.00027397,2]
[337144783,1725456649492,-500.0,0.00027397,2]
[337144784,1725456649502,-500.0,0.00027397,2]
[337144785,1725456649511,-500.0,0.00027397,2]
[337144786,1725456649521,-471.66548102,0.00027397,2]
[337144787,1725456649530,-500.0,0.00027397,2]
[337144788,1725456649540,-500.0,0.00027397,2]
[337144789,1725456649550,-500.0,0.00027397,2]
[337144790,1725456649561,-502.47923099,0.00027397,2]
[337144791,1725456649571,-500.0,0.00027397,2]
[337144792,1725456649581,-503.99417888,0.00027397,2]
[337144793,1725456649591,-500.0,0.00027397,2]
[337144794,1725456649603,-500.0,0.00027397,2]
[337144795,1725456649613,-500.0,0.00027397,2]
[337144796,1725456649622,-500.0,0.00027397,2]
[337144797,1725456649632,-500.0,0.00027397,2]
[337144798,1725456649643,-500.0,0.00027397,2]
[337144799,1725456649653,-500.0,0.00027397,2]
[337144800,1725456649662,-502.02550813,0.00027397,2]
[337144801,1725456649670,-500.0,0.00027397,2]
[337144802,1725456649681,-500.0,0.00027397,2]
[337144803,1725456649691,-504.25406181,0.00027397,2]
[337144804,1725456649700,-500.0,0.00027397,2]
[337144805,1725456649709,-500.0,0.00027397,2]
[337144806,1725456649718,-500.0,0.00027397,2]
[337144807,1725456649727,-500.0,0.00027397,2]
[337144808,1725456649736,-500.0,0.00027397,2]
[337144809,1725456649745,-500.0,0.00027397,2]
[337144810,1725456649754,-500.0,0.00027397,2]
[337144811,1725456649764,-500.0,0.00027397,2]
[337144812,1725456649773,-500.0,0.00027397,2]
[337144813,1725456649783,-500.0,0.00027397,2]
[337144814,1725456649792,-500.0,0.00027397,2]
[337144815,1725456649801,-1205.94,0.00027397,2]
[337144816,1725456649810,-500.0,0.00027397,2]
[337144817,1725456649819,-500.0,0.00027397,2]
[337144818,1725456649827,-500.0,0.00027397,2]
[337144819,1725456649838,-487.12862331,0.00027397,2]
[337144820,1725456649849,-500.0,0.00027397,2]
[337144821,1725456649859,-500.0,0.00027397,2]
[337144822,1725456649870,-500.0,0.00027397,2]
[337144823,1725456649881,-500.0,0.00027397,2]
[337144824,1725456649902,-500.0,0.00027397,2]
[337144825,1725456649914,-500.0,0.00027397,2]
[337144826,1725456649924,-388.47844717,0.00027397,2]
[337144827,1725456649935,-500.0,0.00027397,2]
[337144828,1725456649946,-500.0,0.00027397,2]
[337144829,1725456649955,-500.0,0.00027397,2]
[337144830,1725456649965,-500.0,0.00027397,2]
[337144831,1725456649974,-500.0,0.00027397,2]
[337144832,1725456649983,-500.0,0.00027397,2]
[337144833,1725456649993,-500.0,0.00027397,2]
[337144834,1725456650002,-500.0,0.00027397,2]
[337144835,1725456650011,-500.0,0.00027397,2]
[337144836,1725456650020,-500.0,0.00027397,2]
[337144837,1725456650029,-500.0,0.00027397,2]
[337144838,1725456650039,-500.0,0.00027397,2]
[337144839,1725456650048,-500.0,0.00027397,2]
[337144840,1725456650058,-500.0,0.00027397,2]
[337144841,1725456650068,-500.0,0.00027397,2]
[337144842,1725456650077,-500.0,0.00027397,2]
[337144843,1725456650086,-501.04171013,0.00027397,2]
[337144844,1725456650095,-500.0,0.00027397,2]
[337144845,1725456650106,-500.0,0.00027397,2]
[337144846,1725456650115,-3639.49,0.00027397,2]
[337144847,1725456650125,-500.0,0.00027397,2]
[337144848,1725456650140,-3639.49,0.00027397,2]
[337144849,1725456650152,-3639.49,0.00027397,2]
[337144850,1725456650161,-3639.49,0.00027397,2]
[337144851,1725456650172,-3639.49,0.00027397,2]
[337144852,1725456650182,-3639.49,0.00027397,2]